bitfinex-derivatives/quotes_SOLF0:USTF0_20250211
["timestamp","ask_amount","ask_price","bid_price","bid_amount"]
[1739276010809,0.03194014,202.19,202.17,4.945]
[1739276011005,0.03194014,202.19,202.15,0.03151409]
[1739276011404,0.03194014,202.19,202.16,8.45739685]
[1739276012004,0.03194014,202.19,202.16,13.40259685]
[1739276012304,0.03194014,202.19,202.16,8.45739685]
[1739276013009,0.03194014,202.19,202.16,13.40269685]
[1739276015311,0.03194014,202.19,202.16,8.45739685]
[1739276016210,0.03194014,202.19,202.15,0.03151409]
[1739276016410,0.03194014,202.19,202.15,4.97701409]
[1739276016610,0.03194014,202.19,202.15,0.03151409]
[1739276017412,0.03194014,202.19,202.15,4.97691409]
[1739276017611,0.03194014,202.19,202.15,0.03151409]
[1739276018610,13.40269685,202.16,202.15,0.03151409]
[1739276019517,8.45739685,202.16,202.08,8.45739685]
[1739276019909,8.45739685,202.14,202.08,8.45739685]
[1739276020316,8.45739685,202.16,202.08,8.45739685]
[1739276020618,8.45739685,202.16,202.1,0.03393248]
[1739276020619,0.03252472,202.14,202.1,0.03393248]
[1739276021515,0.03252472,202.14,202.1,4.98063248]
[1739276021711,0.03252472,202.14,202.1,0.03393248]
[1739276021916,8.48992157,202.14,202.1,0.03393248]
[1739276023418,13.43582157,202.14,202.1,0.03393248]
[1739276024121,8.48992157,202.14,202.1,0.03393248]
[1739276024720,0.03252472,202.14,202.1,4.98063248]
[1739276025220,0.03252472,202.14,202.1,8.49132933]
[1739276025719,0.03252472,202.14,202.12,8.45739685]
[1739276026820,0.03252472,202.14,202.13,4.946]
[1739276027919,0.03252472,202.14,202.12,13.40359685]
[1739276028421,0.03252472,202.14,202.13,4.946]
[1739276029819,0.03252472,202.14,202.12,4.9462]
[1739276030020,0.03252472,202.14,202.1,8.49132933]
[1739276030622,0.03252472,202.14,202.1,13.43802933]
[1739276030922,0.03252472,202.14,202.1,0.03393248]
[1739276031325,8.48992157,202.14,202.1,0.03393248]
[1739276031718,4.9461,202.13,202.1,0.03393248]
[1739276032022,8.48992157,202.14,202.1,0.03393248]
[1739276032323,4.97832472,202.14,202.1,0.03393248]
[1739276033023,8.48992157,202.14,202.1,0.03393248]
[1739276033224,4.9461,202.13,202.1,0.03393248]
[1739276033420,0.03252472,202.14,202.1,0.03393248]
[1739276033819,0.03252472,202.14,202.1,13.43812933]
[1739276034019,0.03252472,202.14,202.12,8.45739685]
[1739276034415,0.03252472,202.14,202.1,8.49132933]
[1739276034821,0.03252472,202.14,202.1,0.03393248]
[1739276035115,4.9462,202.13,202.1,0.03393248]
[1739276036424,8.48992157,202.14,202.1,0.03393248]
[1739276036725,13.43572157,202.14,202.1,0.03393248]
[1739276037127,0.03252472,202.14,202.1,0.03393248]
[1739276037323,0.03252472,202.14,202.1,4.98063248]
[1739276037822,0.03252472,202.14,202.1,0.03393248]
[1739276037823,4.97832472,202.14,202.1,0.03393248]
[1739276038223,0.03252472,202.14,202.1,0.03393248]
[1739276038428,4.9461,202.13,202.1,0.03393248]
[1739276039630,8.48992157,202.14,202.1,0.03393248]
[1739276040233,4.9465,202.11,202.1,0.03393248]
[1739276042036,8.48992157,202.14,202.1,0.03393248]
[1739276042535,4.9461,202.13,202.1,0.03393248]
[1739276042830,0.03252472,202.14,202.1,0.03393248]
[1739276043337,4.97832472,202.14,202.1,4.98063248]
[1739276043736,8.45739685,202.13,202.1,0.03393248]
[1739276044136,8.45739685,202.11,202.1,0.03393248]
[1739276044838,13.40389685,202.11,202.1,0.03393248]
[1739276045539,4.9465,202.11,202.1,0.03393248]
[1739276049442,13.40389685,202.11,202.1,0.03393248]
[1739276050242,4.9478,202.06,202.0,8.45739685]
[1739276051451,0.03258868,202.05,202.0,8.45739685]
[1739276051748,0.03258868,202.05,202.01,4.9487]
[1739276052150,0.03258868,202.05,202.02,8.45739685]
[1739276053748,0.03258868,202.05,202.03,4.9483]
[1739276055046,0.03258868,202.05,202.02,13.40609685]
[1739276055257,0.03258868,202.05,202.02,8.45739685]
[1739276055449,0.03258868,202.05,202.03,4.9484]
[1739276056153,0.03258868,202.05,202.02,8.45739685]
[1739276056353,0.03258868,202.05,202.02,13.40589685]
[1739276057951,0.03258868,202.05,202.02,4.9485]
[1739276058255,0.03258868,202.05,202.0,8.45739685]
[1739276058455,4.98058868,202.05,202.0,8.45739685]
[1739276058957,4.9485,202.03,201.98,13.40699685]
[1739276059151,13.40589685,202.03,201.98,13.40699685]
[1739276059347,8.45739685,202.03,201.99,4.9494]
[1739276059762,8.48998553,202.05,201.99,4.9494]
[1739276060349,8.45739685,202.03,201.98,4.9497]
[1739276060555,8.45739685,202.01,201.96,47.99344115]
[1739276060755,8.45739685,202.03,201.96,47.99344115]
[1739276060956,8.45739685,202.03,201.98,8.45739685]
[1739276061157,0.03501901,202.01,201.96,47.99344115]
[1739276061553,0.03501901,202.01,201.98,8.45739685]
[1739276061748,0.03501901,202.01,201.99,4.9494]
[1739276061953,0.03501901,202.01,201.98,8.45739685]
[1739276062448,0.03501901,202.01,201.96,47.99344115]
[1739276062850,0.03501901,202.01,201.96,8.45739685]
[1739276063461,0.03501901,202.01,201.97,4.9499]
[1739276063757,0.03501901,202.01,201.96,8.45739685]
[1739276064359,0.03501901,202.01,201.97,4.9499]
[1739276064858,0.03501901,202.01,201.96,8.45739685]
[1739276065054,0.03501901,202.01,201.97,4.9499]
[1739276065458,0.03501901,202.01,201.98,8.45739685]
[1739276065961,0.03501901,202.01,201.99,4.9495]
[1739276066759,0.03501901,202.01,201.98,8.45739685]
[1739276066955,0.03501901,202.01,202.0,4.9492]
[1739276067258,0.03501901,202.01,202.0,13.40659685]
[1739276073463,9.98189685,202.1,202.05,4.948]
[1739276073665,9.98189685,202.1,202.05,7.32539685]
[1739276073866,9.98189685,202.1,202.05,8.45739685]
[1739276074461,14.96550691,202.1,202.05,13.43882856]
[1739276074661,10.01860691,202.1,202.05,8.49082856]
[1739276074963,4.947,202.09,202.05,8.49082856]
[1739276075165,10.01860691,202.1,202.05,8.49082856]
[1739276075765,14.96540691,202.1,202.05,13.43862856]
[1739276076361,4.947,202.09,202.05,13.43862856]
[1739276076664,10.01860691,202.1,202.05,0.03343171]
[1739276077063,4.9476,202.07,202.05,0.03343171]
[1739276077468,13.40509685,202.06,202.05,0.03343171]
[1739276077765,8.45739685,202.06,201.97,8.45739685]
[1739276078064,13.40589685,202.04,201.99,4.9492]
[1739276078266,8.45739685,202.06,201.99,8.45739685]
[1739276078470,1.4963,202.09,201.97,8.45739685]
[1739276078471,8.45739685,202.04,201.97,8.45739685]
[1739276078662,13.40589685,202.04,201.97,8.45739685]
[1739276078863,0.03474267,202.03,201.97,8.45739685]
[1739276079769,0.03474267,202.03,201.99,4.9494]
[1739276080768,0.03474267,202.03,201.99,13.40679685]
[1739276080969,0.03474267,202.03,202.01,4.949]
[1739276081162,0.03474267,202.03,201.99,8.45739685]
[1739276081564,4.98324267,202.03,201.97,13.40729685]
[1739276081867,4.98324267,202.03,201.97,8.45739685]
[1739276082270,0.03474267,202.03,201.97,8.45739685]
[1739276082965,0.03474267,202.03,201.97,13.40729685]
[1739276083471,0.03474267,202.03,201.97,8.45739685]
[1739276083770,4.98344267,202.03,201.97,8.45739685]
[1739276084573,4.98344267,202.03,201.97,13.40709685]
[1739276084870,4.98344267,202.03,201.97,8.45739685]
[1739276085178,0.03474267,202.03,201.98,4.9497]
[1739276086167,0.03474267,202.03,201.97,8.45739685]
[1739276086470,0.03474267,202.03,201.97,13.40729685]
[1739276086671,0.03474267,202.03,201.97,8.45739685]
[1739276087274,4.98324267,202.03,201.98,4.9496]
[1739276091577,0.03474267,202.03,201.99,4.9493]
[1739276091976,0.03474267,202.03,201.99,13.40669685]
[1739276092376,0.03474267,202.03,202.0,4.9492]
[1739276093876,0.03474267,202.03,201.97,8.45739685]
[1739276094077,8.45739685,202.04,201.97,8.45739685]
[1739276094278,0.03353731,202.02,201.97,8.45739685]
[1739276095881,0.03353731,202.02,201.99,4.9494]
[1739276096577,0.03353731,202.02,201.98,4.9497]
[1739276096982,0.03353731,202.02,201.97,8.45739685]
[1739276097980,0.03353731,202.02,201.98,4.9495]
[1739276098482,0.03353731,202.02,201.98,4.9497]
[1739276099888,0.03353731,202.02,201.99,4.9492]
[1739276100683,8.49093416,202.02,201.95,8.45739685]
[1739276100885,8.45739685,202.0,201.93,8.45739685]
[1739276101085,8.45739685,201.98,201.91,8.45739685]
[1739276101281,8.45739685,201.98,201.91,13.40859685]
[1739276101487,0.03146555,201.97,201.91,13.40859685]
[1739276101688,4.98166555,201.97,201.91,13.40859685]
[1739276102086,13.40779685,201.96,201.9,4.9516]
[1739276102991,4.98146555,201.97,201.91,8.45739685]
[1739276103181,0.03146555,201.97,201.91,8.45739685]
[1739276103488,8.45739685,201.96,201.91,8.45739685]
[1739276103890,0.03146555,201.97,201.91,8.45739685]
[1739276104793,8.45739685,201.96,201.9,4.9514]
[1739276104992,8.45739685,201.96,201.89,8.45739685]
[1739276105193,0.0350281,201.95,201.89,8.45739685]
[1739276105491,0.0350281,201.95,201.91,4.9512]
[1739276105692,0.0350281,201.95,201.89,8.45739685]
[1739276105993,0.0350281,201.95,201.92,4.9511]
[1739276106291,0.0350281,201.95,201.89,8.45739685]
[1739276107089,0.0350281,201.95,201.91,4.9512]
[1739276107291,0.0350281,201.95,201.89,8.45739685]
[1739276108094,8.45739685,201.94,201.87,8.45739685]
[1739276108592,0.03356252,201.93,201.87,8.45739685]
[1739276109496,8.45739685,201.89,201.82,55.07998946]
[1739276109797,8.45739685,201.86,201.82,55.07998946]
[1739276110192,8.48895961,201.88,201.82,55.07998946]
[1739276110693,8.48895961,201.88,201.82,63.53738631]
[1739276110889,0.03156276,201.88,201.84,8.45739685]
[1739276111095,0.03156276,201.88,201.86,8.45739685]
[1739276111393,0.03156276,201.88,201.87,4.9524]
[1739276111895,8.45739685,201.98,201.91,4.9513]
[1739276112091,8.45739685,201.98,201.91,13.40869685]
[1739276112495,8.45739685,201.98,201.93,4.9509]
[1739276112694,8.45739685,202.0,201.93,8.45739685]
[1739276113092,0.03571978,201.99,201.94,0.03734193]
[1739276113901,0.03571978,201.99,201.95,8.45739685]
[1739276114601,0.03571978,201.99,201.98,4.9497]
[1739276117201,0.03571978,201.99,201.95,8.45739685]
[1739276117398,0.03571978,201.99,201.96,4.9502]
[1739276117898,0.03571978,201.99,201.94,4.98784193]
[1739276118201,0.03571978,201.99,201.94,0.03734193]
[1739276119006,0.03571978,201.99,201.94,4.98804193]
[1739276119899,0.03571978,201.99,201.95,4.9504]
[1739276120105,0.03571978,201.99,201.94,0.03734193]
[1739276121106,0.03571978,201.99,201.94,4.98784193]
[1739276121303,0.03571978,201.99,201.94,0.03734193]
[1739276122208,0.03571978,201.99,201.95,13.23010502]
[1739276123612,0.03571978,201.99,201.98,4.9497]
[1739276123907,3.1034,202.09,201.98,13.23010502]
[1739276124408,8.0504,202.09,201.98,13.23010502]
[1739276125009,0.03607222,202.06,202.02,4.9485]
[1739276127008,0.03607222,202.06,202.01,0.03635271]
[1739276127210,13.26617724,202.06,202.01,0.03635271]
[1739276127713,4.9486,202.03,202.01,0.03635271]
[1739276127909,13.26617724,202.06,202.01,0.03635271]
[1739276128907,4.9482,202.04,202.01,0.03635271]
[1739276129307,4.9486,202.03,202.01,0.03635271]
[1739276129806,4.9487,202.02,202.01,0.03635271]
[1739276133006,13.23010502,202.03,201.89,14.69130502]
[1739276133213,13.23010502,202.0,201.87,3.0448]
[1739276133505,13.23010502,201.97,201.86,13.23010502]
[1739276134012,13.23010502,201.97,201.85,55.07998946]
[1739276134013,13.23010502,201.94,201.85,55.07998946]
[1739276134210,4.951,201.93,201.9,0.03661109]
[1739276134410,13.23010502,201.94,201.9,0.03661109]
[1739276134812,4.9512,201.92,201.9,0.03661109]
[1739276135512,4.9514,201.91,201.9,0.03661109]
[1739276136608,4.9514,201.91,201.81,1.5935]
[1739276136609,13.23010502,201.91,201.74,40.26666388]
[1739276136815,13.23010502,201.88,201.76,13.23010502]
[1739276137414,4.9527,201.86,201.76,13.23010502]
[1739276137907,0.03736598,201.83,201.79,4.9541]
[1739276138108,0.03736598,201.83,201.76,13.23010502]
[1739276138614,0.03736598,201.83,201.79,13.23010502]
[1739276138809,0.03736598,201.83,201.76,13.23010502]
[1739276139210,0.03736598,201.83,201.77,4.9548]
[1739276139612,0.03736598,201.83,201.73,13.23010502]
[1739276140316,13.23010502,201.82,201.7,13.23010502]
[1739276140518,13.23010502,201.79,201.67,95.85008921]
[1739276140714,4.9549,201.77,201.67,82.61998419]
[1739276140918,13.23010502,201.76,201.67,82.61998419]
[1739276141114,13.23010502,201.76,201.65,55.07998946]
[1739276141315,18.18540502,201.76,201.66,4.9574]
[1739276141511,18.18540502,201.76,201.65,55.07998946]
[1739276141720,0.03804847,201.73,201.65,55.07998946]
[1739276142022,0.03804847,201.73,201.67,4.9573]
[1739276142317,0.03804847,201.73,201.65,55.07998946]
[1739276142515,0.03804847,201.73,201.67,13.23010502]
[1739276142918,0.03804847,201.73,201.7,13.23010502]
[1739276143113,0.03804847,201.73,201.71,4.9563]
[1739276143322,0.03804847,201.73,201.67,13.23010502]
[1739276143718,0.03804847,201.73,201.65,55.07998946]
[1739276144226,0.03804847,201.73,201.67,13.23010502]
[1739276144823,0.03804847,201.73,201.71,4.9562]
[1739276146422,13.23010502,201.85,201.77,4.9548]
[1739276146624,3.0401,201.86,201.73,13.23010502]
[1739276147423,13.23010502,201.82,201.7,13.23010502]
[1739276147623,18.21950308,201.82,201.77,0.0324759]
[1739276148026,13.26580308,201.82,201.77,0.0324759]
[1739276148225,4.954,201.81,201.77,0.0324759]
[1739276148421,13.26580308,201.82,201.77,0.0324759]
[1739276148627,13.23010502,201.79,201.77,0.0324759]
[1739276149229,18.18450502,201.79,201.77,0.0324759]
[1739276149429,13.23010502,201.79,201.77,0.0324759]
[1739276149631,13.23010502,201.79,201.67,13.23010502]
[1739276150519,13.23010502,201.82,201.67,13.23010502]
[1739276150730,13.23010502,201.82,201.75,4.9553]
[1739276151030,0.03387876,201.77,201.7,13.23010502]
[1739276151226,0.03387876,201.77,201.76,4.9551]
[1739276151627,0.03338201,201.79,201.7,13.23010502]
[1739276151828,4.954,201.81,201.72,4.9559]
[1739276152125,0.03680841,201.77,201.7,13.23010502]
[1739276152625,0.03680841,201.77,201.67,13.23010502]
[1739276153033,13.23010502,201.79,201.67,13.23010502]
[1739276153034,13.23010502,201.79,201.72,4.956]
[1739276153331,0.03796217,201.74,201.67,13.23010502]
[1739276153632,0.03796217,201.74,201.72,4.9559]
[1739276154027,0.03796217,201.74,201.67,13.23010502]
[1739276154232,0.03796217,201.74,201.73,4.9558]
[1739276155327,13.23010502,201.85,201.73,13.23010502]
[1739276155525,3.0401,201.86,201.73,13.23010502]
[1739276155721,4.9529,201.85,201.73,13.23010502]
[1739276155923,3.0401,201.86,201.73,13.23010502]
[1739276156122,4.9535,201.83,201.73,13.23010502]
[1739276156729,0.03778933,201.8,201.76,4.99226631]
[1739276156927,0.03778933,201.8,201.76,0.03736631]
[1739276157626,4.99198933,201.8,201.76,0.03736631]
[1739276158230,4.9544,201.79,201.76,0.03736631]
[1739276158439,0.03778933,201.8,201.76,0.03736631]
[1739276159732,4.99208933,201.8,201.76,0.03736631]
[1739276159926,0.03778933,201.8,201.76,0.03736631]
[1739276161533,4.9549,201.77,201.76,0.03736631]
[1739276161734,13.26789435,201.8,201.71,4.9561]
[1739276161735,1.4964,201.79,201.71,4.9561]
[1739276162033,4.9553,201.76,201.71,4.9561]
[1739276162229,1.4964,201.79,201.73,4.9557]
[1739276162731,4.9546,201.78,201.67,13.23010502]
[1739276162929,4.99040292,201.78,201.67,13.23010502]
[1739276163430,0.03580292,201.78,201.67,13.23010502]
[1739276163637,0.03580292,201.78,201.7,13.23010502]
[1739276163831,13.23010502,201.83,201.7,13.23010502]
[1739276164135,0.03806555,201.79,201.76,4.9549]
[1739276164729,0.03806555,201.79,201.7,13.23010502]
[1739276164934,0.03806555,201.79,201.77,4.9548]
[1739276165130,0.03806555,201.79,201.7,13.23010502]
[1739276165332,0.03806555,201.79,201.72,4.9559]
[1739276165532,0.03806555,201.79,201.7,13.23010502]
[1739276166037,4.9549,201.77,201.73,4.9557]
[1739276166239,0.03806555,201.79,201.67,13.23010502]
[1739276166736,0.03773916,201.75,201.67,13.23010502]
[1739276167137,0.03773916,201.75,201.64,14.73450502]
[1739276167336,4.9559,201.73,201.67,4.9573]
[1739276167642,0.03773916,201.75,201.64,14.73450502]
[1739276167939,4.9556,201.75,201.68,4.9568]
[1739276168235,0.03463798,201.72,201.68,4.9568]
[1739276168833,0.03463798,201.72,201.69,4.9568]
[1739276169332,0.03463798,201.72,201.7,4.9563]
[1739276169541,0.03463798,201.72,201.67,13.23010502]
[1739276169936,0.03463798,201.72,201.71,4.9563]
[1739276170232,13.23010502,201.83,201.71,4.9563]
[1739276170438,4.564,201.87,201.73,13.23010502]
[1739276171340,13.23010502,201.85,201.7,13.23010502]
[1739276171638,0.03138603,201.82,201.78,0.03702244]
[1739276172244,0.03138603,201.82,201.79,4.9543]
[1739276172440,0.03138603,201.82,201.78,0.03702244]
[1739276173332,0.03138603,201.82,201.81,4.9539]
[1739276175536,0.03138603,201.82,201.79,4.9541]
[1739276176044,0.03138603,201.82,201.78,0.03702244]
[1739276176841,4.98518603,201.82,201.78,0.03702244]
[1739276177139,0.03138603,201.82,201.78,0.03702244]
[1739276178740,4.98518603,201.82,201.78,0.03702244]
[1739276178943,0.03138603,201.82,201.78,0.03702244]
[1739276179445,13.26149105,201.82,201.78,0.03702244]
[1739276179646,4.9542,201.8,201.78,0.03702244]
[1739276179839,13.26149105,201.82,201.78,0.03702244]
[1739276180035,0.03138603,201.82,201.78,0.03702244]
[1739276181842,0.03138603,201.82,201.79,4.9543]
[1739276182045,0.03138603,201.82,201.78,0.03702244]
[1739276182946,0.03138603,201.82,201.79,4.9543]
[1739276183139,0.03138603,201.82,201.78,0.03702244]
[1739276183542,0.03138603,201.82,201.8,4.954]
[1739276183747,0.03138603,201.82,201.78,0.03702244]
[1739276184544,4.98508603,201.82,201.78,0.03702244]
[1739276185341,0.03138603,201.82,201.78,4.99152244]
[1739276187243,0.03138603,201.82,201.78,0.03702244]
[1739276187444,0.03138603,201.82,201.79,13.23010502]
[1739276187848,0.03138603,201.82,201.81,4.9539]
[1739276188048,17.85270502,201.94,201.79,13.23010502]
[1739276188549,4.9517,201.9,201.84,4.953]
[1739276188749,4.9517,201.9,201.79,13.23010502]
[1739276188949,17.85270502,201.94,201.79,13.23010502]
[1739276189153,0.03753618,201.87,201.86,4.9526]
[1739276189353,17.85270502,201.94,201.86,4.9526]
[1739276189650,0.03220647,201.89,201.86,4.9526]
[1739276189950,0.03220647,201.89,201.84,0.03369703]
[1739276190549,0.03220647,201.89,201.87,4.9524]
[1739276191051,0.03220647,201.89,201.88,4.9522]
[1739276191851,0.03220647,201.89,201.88,18.18230502]
[1739276192152,0.03220647,201.89,201.88,4.9522]
[1739276192449,0.03220647,201.89,201.84,0.03369703]
[1739276193157,0.03220647,201.89,201.85,4.9527]
[1739276193353,0.03220647,201.89,201.84,0.03369703]
[1739276193850,0.03220647,201.89,201.86,4.9525]
[1739276194045,0.03220647,201.89,201.84,0.03369703]
[1739276194757,0.03220647,201.89,201.88,4.9521]
[1739276194953,0.03220647,201.89,201.88,18.18220502]
[1739276195258,13.23010502,202.03,201.88,13.23010502]
[1739276195756,4.9501,201.97,201.88,13.23010502]
[1739276196157,13.23010502,202.0,201.88,13.23010502]
[1739276196353,0.03808708,201.95,201.9,4.9848245]
[1739276196859,4.9507,201.94,201.9,0.0334245]
[1739276197158,0.03808708,201.95,201.9,0.0334245]
[1739276197958,4.9507,201.94,201.9,0.0334245]
[1739276198255,0.03808708,201.95,201.9,0.0334245]
[1739276198663,0.03808708,201.95,201.91,4.9514]
[1739276199163,0.03808708,201.95,201.9,0.0334245]
[1739276201065,4.9511,201.93,201.9,0.0334245]
[1739276201265,0.03808708,201.95,201.9,0.0334245]
[1739276202169,4.9511,201.93,201.9,0.0334245]
[1739276202665,0.03808708,201.95,201.9,0.0334245]
[1739276203666,0.03808708,201.95,201.92,4.9511]
[1739276204268,0.03808708,201.95,201.9,0.0334245]
[1739276205170,4.9509,201.94,201.9,4.9849245]
[1739276205469,4.9509,201.94,201.9,0.0334245]
[1739276206461,0.03808708,201.95,201.9,0.0334245]
[1739276206767,0.03808708,201.95,201.93,4.9507]
[1739276206960,0.03808708,201.95,201.9,0.0334245]
[1739276209275,0.03808708,201.95,201.94,4.9507]
[1739276212380,0.03808708,201.95,201.91,13.23010502]
[1739276212676,0.03808708,201.95,201.9,0.0334245]
[1739276213477,0.03808708,201.95,201.9,4.9849245]
[1739276214072,0.03808708,201.95,201.91,4.9513]
[1739276214278,0.03808708,201.95,201.9,0.0334245]
[1739276214575,0.03808708,201.95,201.92,4.951]
[1739276215073,0.03808708,201.95,201.9,0.0334245]
[1739276215280,0.03808708,201.95,201.9,4.9849245]
[1739276216378,0.03808708,201.95,201.91,4.9514]
[1739276217183,0.03808708,201.95,201.9,0.0334245]
[1739276218080,4.9509,201.94,201.9,0.0334245]
[1739276219377,4.951,201.93,201.9,0.0334245]
[1739276219583,13.23010502,201.92,201.79,13.23010502]
[1739276219984,4.9521,201.89,201.82,4.9534]
[1739276220476,4.9521,201.89,201.79,13.23010502]
[1739276220879,0.03170292,201.86,201.82,0.03406147]
[1739276221383,0.03170292,201.86,201.83,4.9533]
[1739276221584,0.03170292,201.86,201.82,0.03406147]
[1739276222982,4.9531,201.85,201.76,4.9551]
[1739276223183,13.26180794,201.86,201.76,4.9551]
[1739276223583,4.9532,201.84,201.76,4.9551]
[1739276224183,4.9532,201.84,201.78,0.03619485]
[1739276224680,13.26180794,201.86,201.78,0.03619485]
[1739276224981,0.03170292,201.86,201.78,0.03619485]
[1739276225280,0.03170292,201.86,201.8,4.9539]
[1739276225482,0.03170292,201.86,201.78,0.03619485]
[1739276225988,13.26180794,201.86,201.78,0.03619485]
[1739276226683,4.9534,201.84,201.78,0.03619485]
[1739276226986,13.23010502,201.83,201.67,107.05945446]
[1739276227282,13.23010502,201.8,201.67,92.39484944]
[1739276227478,13.23010502,201.77,201.67,92.39484944]
[1739276227783,13.23010502,201.77,201.71,4.9562]
[1739276228086,13.23010502,201.77,201.67,92.39484944]
[1739276228285,18.18570502,201.74,201.65,4.9576]
[1739276228484,18.18570502,201.74,201.62,92.39484944]
[1739276228881,0.03446827,201.7,201.66,4.9575]
[1739276229084,0.03446827,201.7,201.62,92.39484944]
[1739276229488,0.03446827,201.7,201.65,4.9576]
[1739276229791,0.03446827,201.7,201.62,92.39484944]
[1739276230286,0.03446827,201.7,201.62,69.98308652]
[1739276230486,0.03446827,201.7,201.61,13.23010502]
[1739276230687,0.03446827,201.7,201.65,4.9577]
[1739276231491,0.03446827,201.7,201.61,13.23010502]
[1739276231790,0.03446827,201.7,201.64,4.958]
[1739276232186,0.03446827,201.7,201.61,13.23010502]
[1739276233290,4.9569,201.69,201.61,4.9586]
[1739276233489,4.9569,201.69,201.57,13.23010502]
[1739276233685,4.9569,201.69,201.58,0.90006024]
[1739276234091,0.03455989,201.65,201.58,0.90006024]
[1739276235293,13.23010502,201.64,201.5,13.23010502]
[1739276235490,13.23010502,201.64,201.55,4.96]
[1739276235684,13.23010502,201.64,201.5,13.23010502]
[1739276235883,0.03302865,201.59,201.53,13.23010502]
[1739276236091,0.03302865,201.59,201.54,0.90024991]
[1739276236493,0.03302865,201.59,201.53,13.23010502]
[1739276236894,0.03302865,201.59,201.58,4.9595]
[1739276237396,0.03302865,201.59,201.53,13.23010502]
[1739276237793,0.03302865,201.59,201.47,13.23010502]
[1739276237994,0.03302865,201.59,201.48,0.90048371]
[1739276238298,0.03151961,201.56,201.5,4.9614]
[1739276238493,0.03151961,201.56,201.44,13.23010502]
[1739276238699,0.03151961,201.56,201.45,0.90062672]
[1739276238898,4.9603,201.55,201.47,4.9622]
[1739276239100,4.9603,201.55,201.44,13.23010502]
[1739276239399,13.23010502,201.58,201.44,13.23010502]
[1739276239600,0.03558878,201.52,201.44,13.23010502]
[1739276240398,0.03558878,201.52,201.47,13.23010502]
[1739276240598,1.4834,201.59,201.47,13.23010502]
[1739276240798,0.03526658,201.55,201.47,13.23010502]
[1739276242506,0.03526658,201.55,201.44,13.23010502]
[1739276242802,13.23010502,201.58,201.44,13.23010502]
[1739276243002,0.03250008,201.52,201.44,13.23010502]
[1739276243603,0.03250008,201.52,201.47,13.23010502]
[1739276243808,1.4834,201.59,201.51,4.9612]
[1739276244004,1.4834,201.59,201.5,13.23010502]
[1739276244205,3.0153,201.6,201.5,13.23010502]
[1739276244399,0.03164342,201.57,201.5,13.23010502]
[1739276244905,0.03164342,201.57,201.55,4.96]
[1739276245504,0.03164342,201.57,201.5,13.23010502]
[1739276245808,0.03164342,201.57,201.56,4.96]
[1739276246201,0.03164342,201.57,201.55,4.9602]
[1739276246605,0.03164342,201.57,201.5,13.23010502]
[1739276246906,0.03164342,201.57,201.56,4.96]
[1739276247206,16.25940502,201.67,201.53,13.23010502]
[1739276247508,0.03773151,201.59,201.58,4.9595]
[1739276247806,4.9578,201.66,201.58,4.9595]
[1739276248006,0.03371509,201.61,201.58,4.9595]
[1739276249005,0.03371509,201.61,201.5,13.23010502]
[1739276249300,13.23010502,201.64,201.5,13.23010502]
[1739276249506,0.03169478,201.58,201.53,13.23010502]
[1739276249705,0.03169478,201.58,201.57,4.9597]
[1739276250504,0.03169478,201.58,201.52,4.9609]
[1739276250707,4.9591,201.6,201.5,13.23010502]
[1739276250903,0.03180568,201.56,201.5,13.23010502]
[1739276251609,0.03180568,201.56,201.49,4.9616]
[1739276252009,0.03381524,201.55,201.49,4.9617]
[1739276253203,18.22422026,201.55,201.47,4.962]
[1739276253408,13.23010502,201.55,201.41,13.23010502]
[1739276253609,0.0327631,201.53,201.44,13.23010502]
[1739276253910,13.23010502,201.55,201.44,13.23010502]
[1739276254208,0.03168921,201.51,201.46,4.9622]
[1739276254404,0.03168921,201.51,201.44,13.23010502]
[1739276254907,0.03168921,201.51,201.41,13.23010502]
[1739276255104,13.23010502,201.55,201.41,13.23010502]
[1739276255298,0.03494508,201.48,201.41,13.23010502]
[1739276255712,0.03494508,201.48,201.38,18.19450502]
[1739276255904,13.23010502,201.52,201.39,0.90089056]
[1739276256209,0.03624678,201.45,201.35,13.23010502]
[1739276256404,0.03624678,201.45,201.38,4.9644]
[1739276257104,0.03624678,201.45,201.35,13.23010502]
[1739276257510,0.03624678,201.45,201.39,4.9641]
[1739276257902,0.03624678,201.45,201.35,13.23010502]
[1739276258908,0.03624678,201.45,201.32,13.23010502]
[1739276259307,13.23010502,201.43,201.32,13.23010502]
[1739276259610,0.03431536,201.41,201.32,13.23010502]
[1739276260612,0.03431536,201.41,201.36,4.9649]
[1739276260912,0.03431536,201.41,201.32,13.23010502]
[1739276262110,0.03431536,201.41,201.35,13.23010502]
[1739276262306,0.03431536,201.41,201.39,4.9641]
[1739276263115,0.03431536,201.41,201.4,4.964]
[1739276263711,0.03431536,201.41,201.38,4.9642]
[1739276264014,0.03431536,201.41,201.33,1.4405]
[1739276265317,0.03431536,201.41,201.35,4.9651]
[1739276265513,0.03431536,201.41,201.32,13.23010502]